fUSD/lending_fUSD_20260602
["ID","MTS","AMOUNT","RATE_DAILY","PERIOD"]
[423764263,1780402238000,-500.0,0.00014178,2]
[423764256,1780402238000,-1152.16,0.00014084,2]
[423764251,1780402238000,-166.66,0.00013836,2]
[423764254,1780402238000,-250.0,0.00014,2]
[423764252,1780402238000,-401.84403812,0.00013971,2]
[423764258,1780402238000,-401.84403812,0.00014157,2]
[423764262,1780402238000,-500.0,0.00014178,2]
[423764260,1780402238000,-500.0,0.00014178,2]
[423764255,1780402238000,-161.0,0.0001404,2]
[423764247,1780402238000,-1680.0,0.0001376,2]
[423764283,1780402239000,-1045.81138157,0.00014377,2]
[423764280,1780402239000,-3551.0,0.00014367,2]
[423764282,1780402239000,-525.0,0.00014377,2]
[423764281,1780402239000,-360.0,0.00014368,2]
[423764284,1780402239000,-227.18861843,0.00014377,2]
[423764288,1780402239000,-74.13997343,0.00014378,2]
[423764292,1780402239000,-486.56880331,0.00014399,2]
[423764290,1780402239000,-151.0,0.00014378,2]
[423764289,1780402239000,-151.0,0.00014378,2]
[423764291,1780402239000,-166.66,0.00014384,2]
[423764286,1780402239000,-101.97138157,0.00014378,2]
[423764300,1780402240000,-120.89016412,0.00014408,2]
[423764297,1780402240000,-788.43119669,0.00014399,2]
[423764293,1780402240000,-215.67541492,0.00013322,2]
[423764321,1780402241000,-150.0,0.00014672,2]
[423764329,1780402241000,-150.0,0.00014672,2]
[423764316,1780402241000,-157.152183,0.00014585,2]
[423764319,1780402241000,-229.58929584,0.00014619,2]
[423764327,1780402241000,-150.0,0.00014672,2]
[423764333,1780402241000,-164.0,0.0001468,2]
[423764335,1780402241000,-229.58929584,0.00014689,2]
[423764334,1780402241000,-1310.2135359,0.00014687,2]
[423764323,1780402241000,-150.0,0.00014672,2]
[423764336,1780402241000,-9879.04,0.0001471,2]
[423764330,1780402241000,-929.0,0.00014672,2]
[423764328,1780402241000,-150.0,0.00014672,2]
[423764322,1780402241000,-150.0,0.00014672,2]
[423764320,1780402241000,-150.0,0.00014672,2]
[423764317,1780402241000,-157.152183,0.00014585,2]
[423764318,1780402241000,-157.152183,0.00014585,2]
[423764326,1780402241000,-150.0,0.00014672,2]
[423764315,1780402241000,-157.152183,0.00014585,2]
[423764311,1780402241000,-401.84403812,0.00014528,2]
[423764308,1780402241000,-286.0,0.00014438,2]
[423764310,1780402241000,-500.0,0.00014496,2]
[423764309,1780402241000,-229.58929584,0.00014478,2]
[423764312,1780402241000,-229.58929584,0.00014548,2]
[423764307,1780402241000,-350.0,0.00014418,2]
[423764306,1780402241000,-108.69913172,0.00014408,2]
[423764314,1780402241000,-181.29086382,0.00014585,2]
[423764313,1780402241000,-1005.622,0.00014585,2]
[423764325,1780402241000,-150.0,0.00014672,2]
[423764337,1780402241000,-8895.06,0.0001471,2]
[423764324,1780402241000,-150.0,0.00014672,2]
[423764332,1780402241000,-164.0,0.0001468,2]
[423764364,1780402241000,-250.0,0.00015,2]
[423764363,1780402241000,-250.0,0.00015,2]
[423764362,1780402241000,-250.0,0.00015,2]
[423764361,1780402241000,-1500.0,0.00015,2]
[423764356,1780402241000,-278.0,0.00015,5]
[423764360,1780402241000,-1500.0,0.00015,2]
[423764352,1780402241000,-231.98253895,0.00014999,2]
[423764357,1780402241000,-150.0,0.00015,2]
[423764359,1780402241000,-1500.0,0.00015,2]
[423764358,1780402241000,-1500.0,0.00015,2]
[423764355,1780402241000,-153.0,0.00015,5]
[423764354,1780402241000,-500.0,0.00014999,2]
[423764351,1780402241000,-338.87344356,0.00014999,2]
[423764353,1780402241000,-362.11024439,0.00014999,2]
[423764345,1780402241000,-200.0,0.0001488,2]
[423764347,1780402241000,-229.58929584,0.000149,2]
[423764344,1780402241000,-588.63,0.00014835,2]
[423764341,1780402241000,-229.58929584,0.00014759,2]
[423764342,1780402241000,-433.0,0.00014787,2]
[423764343,1780402241000,-229.58929584,0.0001483,2]
[423764346,1780402241000,-765.0,0.000149,2]
[423764340,1780402241000,-401.84403812,0.00014714,2]
[423764339,1780402241000,-151.0,0.0001471,2]
[423764350,1780402241000,-202.98472158,0.00014999,2]
[423764349,1780402241000,-150.0,0.00014986,2]
[423764348,1780402241000,-401.84403812,0.000149,2]
[423764338,1780402241000,-297.65,0.0001471,2]
[423764365,1780402241000,-2204282.80031765,0.00015,2]
[423764331,1780402241000,-1357.0,0.00014672,2]
[423764372,1780402243000,-433.84163039,0.00015,2]
[423764374,1780402243000,-80193.15808879,0.00015,2]
[423764373,1780402243000,-673.3,0.00015,2]
[423764375,1780402244000,-31467.016735,0.00015,2]
[423764384,1780402246000,-8460.57343247,0.00015,2]
[423764383,1780402246000,-505.0,0.00015,2]
[423764382,1780402246000,-1893.12,0.00015,2]
[423764381,1780402246000,-572.01969778,0.00015,2]
[423764380,1780402246000,-627.6500566,0.00015,2]
[423764378,1780402246000,-7942.02184643,0.00015,2]
[423764379,1780402246000,-10881.63196662,0.00015,2]
[423764403,1780402296000,-227.55474399,0.00010804,2]
[423764404,1780402349000,-250.0,0.00011344,2]
[423764406,1780402402000,-202.98840213,0.0001102,7]
[423764407,1780402456000,-189.69740348,0.0001102,7]
[423764408,1780402510000,-193.0,0.00011885,2]
[423764409,1780402563000,-5351.36760141,0.00011785,2]
[423764410,1780402616000,-151.64110166,0.00011785,2]
[423764411,1780402670000,-246.27683681,0.00011599,2]
[423764413,1780402723000,-301.00502276,0.00011612,2]
[423764417,1780402776000,-196.22357088,0.00011763,2]
[423764431,1780403073000,-500.0,0.00010999,2]
[423764432,1780403089000,-500.0,0.00010999,2]
[423764433,1780403127000,-344.09008224,0.00010999,2]
[423764438,1780403144000,-1723.83127086,0.00011628,2]
[423764439,1780403144000,-518.46091833,0.00011657,2]
[423764436,1780403144000,-316.71908167,0.00011627,2]
[423764437,1780403144000,-276.16872914,0.00011628,2]
[423764435,1780403144000,-164.82,0.00011612,2]
[423764434,1780403144000,-2242.29218919,0.00011,2]
[423764443,1780403145000,-196.75034628,0.00011976,2]
[423764440,1780403145000,-174.07908167,0.00011657,2]
[423764441,1780403145000,-157.19,0.0001194,2]
[423764442,1780403145000,-215.67541492,0.00011968,2]
[423764447,1780403145000,-1074.84515713,0.00012199,2]
[423764446,1780403145000,-500.0,0.00012099,2]
[423764444,1780403145000,-431.46,0.00012004,2]
[423764445,1780403145000,-250.0,0.00012099,2]
[423764449,1780403157000,-2874.84515713,0.000122,2]
[423764448,1780403157000,-125.15484287,0.00012199,2]
[423764451,1780403179000,-736.33480444,0.000122,2]
[423764452,1780403196000,-3224.21430898,0.00012229,2]
[423764453,1780403210000,-221.70335717,0.00012228,2]
[423764454,1780403210000,-838.69739747,0.00012229,2]
[423764455,1780403210000,-2008.54173421,0.00012229,2]
[423764456,1780403232000,-150.0,0.00012293,2]
[423764459,1780403248000,-246.84021738,0.00012304,2]
[423764457,1780403248000,131.05751115,0.00012228,2]
[423764458,1780403248000,-184.61978262,0.00012228,2]
[423764461,1780403267000,-150.0,0.00012304,2]
[423764463,1780403286000,-34.61978262,0.00012304,2]
[423764464,1780403339000,-500.5236456,0.00012311,2]
[423764465,1780403392000,-804.497,0.00012311,2]
[423764466,1780403412000,500.89195721,0.0002,120]
[423764480,1780403431000,-842.99431612,0.00012225,2]
[423764482,1780403431000,-445.33974429,0.00012225,2]
[423764481,1780403431000,-586.30380575,0.00012225,2]
[423764591,1780403446000,-1027.15501194,0.00012225,2]
[423764626,1780403447000,-2000.0,0.00013081,2]
[423764629,1780403447000,-2901.79287804,0.00013117,2]
[423764632,1780403447000,-2226.9,0.000133,2]
[423764636,1780403447000,-2901.79287804,0.00013414,2]
[423764631,1780403447000,-431.46,0.00013204,2]
[423764635,1780403447000,-255.0,0.00013394,2]
[423764633,1780403447000,-800.0,0.00013356,2]
[423764637,1780403447000,-2008.54173417,0.00013416,2]
[423764634,1780403447000,-500.0,0.00013356,2]
[423764622,1780403447000,-156.46,0.00012803,2]
[423764638,1780403447000,-500.0,0.00013425,2]
[423764640,1780403447000,-500.0,0.00013425,2]
[423764644,1780403447000,-500.0,0.00013425,2]
[423764641,1780403447000,-500.0,0.00013425,2]
[423764643,1780403447000,-500.0,0.00013425,2]
[423764645,1780403447000,-500.0,0.00013425,2]
[423764642,1780403447000,-500.0,0.00013425,2]
[423764650,1780403447000,-500.0,0.00013425,2]
[423764639,1780403447000,-500.0,0.00013425,2]
[423764651,1780403447000,-500.0,0.00013425,2]
[423764616,1780403447000,-150.0,0.0001235,2]
[423764623,1780403447000,-2901.79287804,0.00012819,2]
[423764608,1780403447000,-1200.0,0.00012311,2]
[423764609,1780403447000,-300.0,0.00012311,2]
[423764610,1780403447000,-300.0,0.00012311,2]
[423764607,1780403447000,-155.19235002,0.00012311,2]
[423764613,1780403447000,-196.75034628,0.00012325,2]
[423764612,1780403447000,-1500000.0,0.00012312,2]
[423764611,1780403447000,-150.0,0.00012311,2]
[423764614,1780403447000,-1206.53,0.00012329,2]
[423764624,1780403447000,-2008.54173417,0.00012823,2]
[423764617,1780403447000,-1000.0,0.00012443,2]
[423764618,1780403447000,-2901.79287804,0.00012522,2]
[423764620,1780403447000,-219.14369649,0.00012577,2]
[423764619,1780403447000,-2008.54173417,0.00012526,2]
[423764621,1780403447000,-431.46,0.00012604,2]
[423764630,1780403447000,-2008.54173417,0.00013119,2]
[423764627,1780403447000,-500.0,0.00013082,2]
[423764625,1780403447000,-431.46,0.00012904,2]
[423764628,1780403447000,-692.54,0.00013114,2]
[423764615,1780403447000,-215.67541492,0.00012332,2]
[423764649,1780403447000,-500.0,0.00013425,2]
[423764673,1780403447000,-1221.0,0.00013425,2]
[423764647,1780403447000,-500.0,0.00013425,2]
[423764685,1780403447000,-1221.0,0.00013425,2]
[423764675,1780403447000,-1221.0,0.00013425,2]
[423764674,1780403447000,-1221.0,0.00013425,2]
[423764677,1780403447000,-1221.0,0.00013425,2]
[423764676,1780403447000,-1221.0,0.00013425,2]
[423764678,1780403447000,-1221.0,0.00013425,2]
[423764680,1780403447000,-1221.0,0.00013425,2]
[423764679,1780403447000,-1221.0,0.00013425,2]
[423764672,1780403447000,-1221.0,0.00013425,2]
[423764683,1780403447000,-1221.0,0.00013425,2]
[423764681,1780403447000,-1221.0,0.00013425,2]
[423764687,1780403447000,-1221.0,0.00013425,2]
[423764686,1780403447000,-1221.0,0.00013425,2]
[423764688,1780403447000,-1221.0,0.00013425,2]
[423764691,1780403447000,-1221.0,0.00013425,2]
[423764689,1780403447000,-1221.0,0.00013425,2]
[423764690,1780403447000,-1221.0,0.00013425,2]
[423764646,1780403447000,-500.0,0.00013425,2]
[423764684,1780403447000,-1221.0,0.00013425,2]
[423764670,1780403447000,-500.0,0.00013425,2]
[423764682,1780403447000,-1221.0,0.00013425,2]
[423764666,1780403447000,-500.0,0.00013425,2]
[423764648,1780403447000,-180.45208771,0.00013425,2]
[423764668,1780403447000,-500.0,0.00013425,2]
[423764653,1780403447000,-500.0,0.00013425,2]
[423764654,1780403447000,-508.29052709,0.00013425,2]
[423764652,1780403447000,-500.0,0.00013425,2]
[423764655,1780403447000,-500.0,0.00013425,2]
[423764658,1780403447000,-150.0,0.00013425,2]
[423764657,1780403447000,-500.0,0.00013425,2]
[423764656,1780403447000,-338.44666707,0.00013425,2]
[423764661,1780403447000,-541.41561873,0.00013425,2]
[423764660,1780403447000,-500.0,0.00013425,2]
[423764662,1780403447000,-500.0,0.00013425,2]
[423764664,1780403447000,-500.0,0.00013425,2]
[423764665,1780403447000,-500.0,0.00013425,2]
[423764663,1780403447000,-500.0,0.00013425,2]
[423764667,1780403447000,-500.0,0.00013425,2]
[423764659,1780403447000,-194.79440243,0.00013425,2]
[423764669,1780403447000,-500.0,0.00013425,2]
[423764671,1780403447000,-386.84986946,0.00013425,2]
[423764716,1780403448000,-500.0,0.00013425,2]
[423764724,1780403448000,-500.0,0.00013698,2]
[423764722,1780403448000,-500.0,0.00013698,2]
[423764721,1780403448000,-503.57198463,0.00013698,2]
[423764711,1780403448000,-500.0,0.00013425,2]
[423764718,1780403448000,-420.0,0.0001351,2]
[423764723,1780403448000,-500.0,0.00013698,2]
[423764717,1780403448000,-500.0,0.00013425,2]
[423764727,1780403448000,-500.0,0.00013698,2]
[423764735,1780403448000,-500.0,0.00013698,2]
[423764729,1780403448000,-360.48137374,0.00013698,2]
[423764726,1780403448000,-500.0,0.00013698,2]
[423764728,1780403448000,-500.0,0.00013698,2]
[423764730,1780403448000,-500.0,0.00013698,2]
[423764733,1780403448000,-500.0,0.00013698,2]
[423764731,1780403448000,-500.0,0.00013698,2]
[423764734,1780403448000,-500.0,0.00013698,2]
[423764736,1780403448000,-500.0,0.00013698,2]
[423764720,1780403448000,-1680.0,0.00013542,2]
[423764725,1780403448000,-500.0,0.00013698,2]
[423764713,1780403448000,-150.0,0.00013425,2]
[423764693,1780403448000,-1221.0,0.00013425,2]
[423764719,1780403448000,-250.0,0.00013523,2]
[423764697,1780403448000,-500.0,0.00013425,2]
[423764698,1780403448000,-500.0,0.00013425,2]
[423764692,1780403448000,-1221.0,0.00013425,2]
[423764695,1780403448000,-1238.45177235,0.00013425,2]
[423764696,1780403448000,-500.0,0.00013425,2]
[423764694,1780403448000,-1221.0,0.00013425,2]
[423764701,1780403448000,-500.0,0.00013425,2]
[423764699,1780403448000,-500.0,0.00013425,2]
[423764702,1780403448000,-500.0,0.00013425,2]
[423764715,1780403448000,-500.0,0.00013425,2]
[423764704,1780403448000,-503.86765878,0.00013425,2]
[423764710,1780403448000,-208.03381405,0.00013425,2]
[423764703,1780403448000,-500.0,0.00013425,2]
[423764705,1780403448000,-503.59944546,0.00013425,2]
[423764708,1780403448000,-500.0,0.00013425,2]
[423764709,1780403448000,-150.0,0.00013425,2]
[423764732,1780403448000,-500.0,0.00013698,2]
[423764707,1780403448000,-150.0,0.00013425,2]
[423764712,1780403448000,-312.85414805,0.00013425,2]
[423764714,1780403448000,-278.88036096,0.00013425,2]
[423764700,1780403448000,-500.0,0.00013425,2]
[423764737,1780403448000,-500.0,0.00013698,2]
[423764706,1780403448000,-150.0,0.00013425,2]
[423764741,1780403448000,-500.0,0.00013698,2]
[423764764,1780403448000,-166.66,0.0001411,2]
[423764762,1780403448000,-2901.79287804,0.00014008,2]
[423764766,1780403448000,-250.0,0.00014247,2]
[423764768,1780403448000,-151.0,0.0001425,2]
[423764767,1780403448000,-365059.59926106,0.0001425,2]
[423764769,1780403448000,-295.68595,0.0001425,2]
[423764771,1780403448000,-1498.550082,0.0001425,2]
[423764775,1780403448000,-278.253208,0.00014368,2]
[423764772,1780403448000,-1498.550082,0.0001425,2]
[423764763,1780403448000,-2008.54173417,0.0001401,2]
[423764776,1780403448000,-2274.60278587,0.00014368,2]
[423764778,1780403448000,-293.6013759,0.00014368,2]
[423764770,1780403448000,-1498.550082,0.0001425,2]
[423764777,1780403448000,-2213.32341035,0.00014368,2]
[423764774,1780403448000,-2008.54173417,0.00014306,2]
[423764779,1780403448000,-166.66,0.00014384,2]
[423764783,1780403448000,-2000.0,0.00014535,2]
[423764782,1780403448000,-209.0,0.00014466,5]
[423764780,1780403448000,-360.0,0.00014441,2]
[423764738,1780403448000,-500.0,0.00013698,2]
[423764773,1780403448000,-1498.550082,0.0001425,2]
[423764765,1780403448000,-166.66,0.00014247,2]
[423764781,1780403448000,-256.0,0.00014466,5]
[423764759,1780403448000,-166.66,0.00013836,2]
[423764761,1780403448000,-250.0,0.00014,2]
[423764740,1780403448000,-532.81,0.00013698,2]
[423764743,1780403448000,-500.0,0.00013698,2]
[423764739,1780403448000,-500.0,0.00013698,2]
[423764742,1780403448000,-500.0,0.00013698,2]
[423764746,1780403448000,-500.0,0.00013698,2]
[423764751,1780403448000,-274.509484,0.00013699,2]
[423764747,1780403448000,-180.0,0.00013699,2]
[423764745,1780403448000,-500.0,0.00013698,2]
[423764748,1780403448000,-200.0,0.00013699,2]
[423764744,1780403448000,-502.08902244,0.00013698,2]
[423764749,1780403448000,-166.66,0.00013699,2]
[423764750,1780403448000,-151.0,0.00013699,2]
[423764755,1780403448000,-1498.550082,0.0001372,2]
[423764757,1780403448000,-1498.550082,0.0001372,2]
[423764758,1780403448000,-1498.550082,0.0001372,2]
[423764753,1780403448000,-2008.54173417,0.00013713,2]
[423764754,1780403448000,-2319.0,0.0001372,2]
[423764752,1780403448000,-2901.79287804,0.00013711,2]
[423764760,1780403448000,-166.66,0.00013973,2]
[423764756,1780403448000,-1498.550082,0.0001372,2]
[423764806,1780403449000,-151.0,0.00014757,2]
[423764817,1780403449000,-151.0,0.00014757,2]
[423764807,1780403449000,-151.0,0.00014757,2]
[423764816,1780403449000,-151.0,0.00014757,2]
[423764805,1780403449000,-151.0,0.00014757,2]
[423764811,1780403449000,-151.0,0.00014757,2]
[423764810,1780403449000,-151.0,0.00014757,2]
[423764809,1780403449000,-151.0,0.00014757,2]
[423764814,1780403449000,-151.0,0.00014757,2]
[423764808,1780403449000,-151.0,0.00014757,2]
[423764815,1780403449000,-155.49,0.00014757,2]
[423764812,1780403449000,-151.0,0.00014757,2]
[423764818,1780403449000,-151.47,0.00014757,2]
[423764801,1780403449000,-151.0,0.00014755,2]
[423764821,1780403449000,-151.0,0.00014757,2]
[423764813,1780403449000,-151.0,0.00014757,2]
[423764802,1780403449000,-233.11,0.00014755,2]
[423764793,1780403449000,-151.0,0.00014755,2]
[423764798,1780403449000,-151.0,0.00014755,2]
[423764825,1780403449000,-151.49,0.00014757,2]
[423764787,1780403449000,-1273.0,0.00014672,2]
[423764786,1780403449000,-2008.54173417,0.00014603,2]
[423764789,1780403449000,-1226.0,0.00014672,2]
[423764791,1780403449000,-151.0,0.00014755,2]
[423764790,1780403449000,-800.0,0.00014726,2]
[423764784,1780403449000,-692.54,0.00014571,2]
[423764800,1780403449000,-151.0,0.00014755,2]
[423764788,1780403449000,-525.0,0.00014672,2]
[423764804,1780403449000,-151.0,0.00014755,2]
[423764792,1780403449000,-152.42,0.00014755,2]
[423764795,1780403449000,-151.0,0.00014755,2]
[423764797,1780403449000,-151.0,0.00014755,2]
[423764799,1780403449000,-151.0,0.00014755,2]
[423764794,1780403449000,-151.0,0.00014755,2]
[423764796,1780403449000,-151.0,0.00014755,2]
[423764803,1780403449000,-151.0,0.00014755,2]
[423764820,1780403449000,-151.0,0.00014757,2]
[423764785,1780403449000,-433.0,0.00014576,2]
[423764822,1780403449000,-207.83,0.00014757,2]
[423764854,1780403449000,-926129.80632568,0.00015,2]
[423764852,1780403449000,-1500.0,0.00014999,2]
[423764853,1780403449000,-250.0,0.00014999,2]
[423764844,1780403449000,-45330.0,0.000149,2]
[423764843,1780403449000,-5902.73738216,0.000149,3]
[423764849,1780403449000,-500.0,0.00014999,2]
[423764847,1780403449000,-2126.0739474,0.0001494,2]
[423764851,1780403449000,-1500.0,0.00014999,2]
[423764846,1780403449000,-539.70285454,0.00014915,2]
[423764848,1780403449000,-10000.0,0.00014998,2]
[423764850,1780403449000,-150.0,0.00014999,2]
[423764855,1780403449000,-849188.29304579,0.00015,2]
[423764859,1780403449000,-1965.67788652,0.00015,2]
[423764857,1780403449000,-235326.8404,0.00015,2]
[423764856,1780403449000,-1155828.16966734,0.00015,2]
[423764858,1780403449000,-8524.39739539,0.00015,2]
[423764845,1780403449000,-2008.54173417,0.000149,2]
[423764842,1780403449000,-219.14369649,0.000149,2]
[423764826,1780403449000,-151.0,0.00014757,2]
[423764841,1780403449000,-539.70285454,0.000149,2]
[423764824,1780403449000,-151.0,0.00014757,2]
[423764819,1780403449000,-151.0,0.00014757,2]
[423764828,1780403449000,-151.0,0.00014757,2]
[423764823,1780403449000,-151.0,0.00014757,2]
[423764829,1780403449000,-151.0,0.00014757,2]
[423764833,1780403449000,-539.70285454,0.00014788,2]
[423764831,1780403449000,-151.0,0.00014757,2]
[423764832,1780403449000,-151.0,0.00014757,2]
[423764834,1780403449000,-837.29620806,0.00014802,2]
[423764830,1780403449000,-151.29,0.00014757,2]
[423764835,1780403449000,-587.0,0.00014826,2]
[423764836,1780403449000,-700.0,0.00014833,2]
[423764838,1780403449000,-539.70285454,0.00014874,2]
[423764837,1780403449000,-32965.38747936,0.0001485,2]
[423764839,1780403449000,-200.0,0.0001488,2]
[423764827,1780403449000,-152.45,0.00014757,2]
[423764840,1780403449000,-2351.0,0.00014896,2]
[423764860,1780403450000,-1733.36989554,0.00014306,2]
[423764866,1780403491000,-2901.79287804,0.00014603,2]
[423764865,1780403491000,-500.5236456,0.00012311,2]
[423764867,1780403491000,-65969.68347636,0.00015,2]
[423764864,1780403491000,-1424.353784,0.00015,2]
[423764862,1780403491000,-1168.4229825,0.00014306,2]
[423764863,1780403491000,-1038.7196175,0.00015,2]
[423764868,1780403491000,-2407.44,0.00015,2]
[423764869,1780403510000,-227.55474399,0.00010804,2]
[423764870,1780403553000,-189.69740348,0.00011219,7]
[423764873,1780403745000,-500.0,0.00011118,2]
[423764874,1780403761000,-500.0,0.00011118,2]
[423764875,1780403798000,-375.83887837,0.00011118,2]
[423764876,1780403813000,-1200.0,0.00011118,2]
[423764877,1780403851000,-152.87098649,0.00011117,2]
[423764878,1780403868000,-1965.67788652,0.00011118,2]
[423764882,1780403902000,-1965.67788652,0.00011118,2]
[423764883,1780403904000,-300.0,0.00011117,2]
[423764884,1780403904000,-1665.67788652,0.00011118,2]
[423764885,1780403935000,-151.64110166,0.00011018,2]
[423764886,1780403937000,-151.64110166,0.00011118,2]
[423764887,1780403986000,-1307.47764376,0.00011118,2]
[423764888,1780403988000,-218.30864819,0.00011118,2]
[423764890,1780403988000,-202.98840213,0.00011219,7]
[423764889,1780403988000,-215.67541492,0.00011167,2]
[423764893,1780403989000,-123.22331895,0.00011523,2]
[423764892,1780403989000,-246.27683681,0.00011412,2]
[423764891,1780403989000,-301.00502276,0.00011412,2]
[423764894,1780404019000,-55.01668105,0.00011523,2]
[423764895,1780404020000,-55.01668105,0.00011686,2]
[423764896,1780404055000,-172.82,0.0001095,2]
[423764897,1780404124000,-1035.26331895,0.00011686,2]
[423764898,1780404169000,-455.38,0.00011593,2]
[423764905,1780404435000,-163.58,0.00011283,2]
[423764902,1780404435000,-150.0,0.00010973,2]
[423764904,1780404435000,-1000.0,0.00011283,2]
[423764903,1780404435000,-150.0,0.00010973,2]
[423764906,1780404435000,-11.44747289,0.00011382,2]
[423764908,1780404435000,-249.13814791,0.00011382,2]
[423764909,1780404435000,-500.0,0.00011382,2]
[423764910,1780404435000,-344.9247083,0.00011382,2]
[423764911,1780404435000,-95.67686849,0.00011382,2]
[423764907,1780404435000,-285.28774819,0.00011382,2]
[423764933,1780404637000,-193.54516914,0.00010481,2]
[423764939,1780404637000,-311.47416984,0.00010481,2]
[423764936,1780404637000,-500.0,0.00010481,2]
[423764932,1780404637000,-174.39670354,0.00010481,2]
[423764931,1780404637000,-227.55474399,0.00010476,2]
[423764934,1780404637000,-207.71465476,0.00010481,2]
[423764935,1780404637000,-500.0,0.00010481,2]
[423764940,1780404637000,-396.04296941,0.00010481,2]
[423764937,1780404637000,-593.25478456,0.00010481,2]
[423764938,1780404637000,-562.74423527,0.00010481,2]
[423764986,1780404638000,-393.94573094,0.00012192,2]
[423764972,1780404638000,-1230.41692014,0.00011828,2]
[423764973,1780404638000,-161.84,0.00011843,2]
[423764971,1780404638000,-1867.63,0.00011784,2]
[423764976,1780404638000,-178.24,0.00011907,2]
[423764978,1780404638000,-177.54984805,0.00012012,2]
[423764979,1780404638000,-8307.53487636,0.00012012,2]
[423764977,1780404638000,-242.2,0.0001194,2]
[423764981,1780404638000,-1500000.0,0.00012112,2]
[423764980,1780404638000,-987.88,0.00012058,2]
[423764985,1780404638000,-219.14369649,0.0001213,2]
[423764983,1780404638000,-170.98966672,0.00012112,2]
[423764982,1780404638000,-3335.34297417,0.00012112,2]
[423764988,1780404638000,-269.3585395,0.00012202,7]
[423764984,1780404638000,-4031.97618674,0.00012112,2]
[423764989,1780404638000,-1035.277,0.00012211,2]
[423764992,1780404638000,-1378.39,0.00012329,2]
[423764991,1780404638000,-178.24,0.00012291,2]
[423764990,1780404638000,-200.353,0.00012211,2]
[423764970,1780404638000,-196.75034628,0.00011761,2]
[423764999,1780404638000,-191.71728367,0.00012512,2]
[423765001,1780404638000,-178.24,0.00012676,2]
[423765003,1780404638000,-2178.98388395,0.00012732,2]
[423764993,1780404638000,-3335.34297416,0.00012422,2]
[423764996,1780404638000,-4031.9761867,0.0001251,2]
[423765005,1780404638000,-3335.34297416,0.00012732,2]
[423765007,1780404638000,-253.47364093,0.00012746,2]
[423764987,1780404638000,-736.33480444,0.000122,2]
[423764969,1780404638000,-215.67541492,0.00011745,2]
[423764959,1780404638000,-193.0,0.00011524,2]
[423764967,1780404638000,-170.98966672,0.00011697,2]
[423765010,1780404638000,-4031.9761867,0.00012909,2]
[423764950,1780404638000,-711.0,0.0001094,2]
[423764951,1780404638000,-1804.45,0.00010941,2]
[423764949,1780404638000,-200.0,0.00010843,2]
[423764941,1780404638000,-236.23435044,0.00010481,2]
[423764943,1780404638000,-1200.0,0.00010581,2]
[423764946,1780404638000,-288.09043145,0.00010582,2]
[423764942,1780404638000,-5351.36760141,0.00010482,2]
[423764948,1780404638000,-987.88,0.00010718,2]
[423764944,1780404638000,-199.03434248,0.00010582,2]
[423764947,1780404638000,-259.19142812,0.00010582,2]
[423764945,1780404638000,-174.64813129,0.00010582,2]
[423764952,1780404638000,-186.51,0.00010959,2]
[423764974,1780404638000,-202.98840213,0.00011853,7]
[423764955,1780404638000,-578.28957408,0.00011382,2]
[423764956,1780404638000,-2576.93,0.00011384,2]
[423764963,1780404638000,-500.0,0.00011584,2]
[423764953,1780404638000,-170.98966673,0.00011282,2]
[423764958,1780404638000,-250.0,0.00011524,2]
[423764957,1780404638000,-152.0,0.00011522,7]
[423764960,1780404638000,-379.4931453,0.00011524,2]